Cogmind - Beta 17 @@@ ROGUE MODE // 2026.07.04 @ 10:35:54 Player: ae Result: Escaped! Performance ------------- Evolutions (9) 4500 Regions Visited (13) 2600 Robots Destroyed (135) 675 Value Destroyed (6310) 6310 Prototype IDs (81) 1620 Alien Tech Used (0) 0 Bonus (4727) 4727 TOTAL SCORE: 20432 Bonus ------- High Alert Combat Kills 219 Follower Combat Kills 223 Registered with UFD 300 Met Optimus in HQ 500 Scanned by Researcher 500 Win 3000 Friendly Fire -15 Cogmind --------- Core Integrity 1250/1600 Matter 193/300 Energy 482/590 System Corruption 0% Temperature Cool (32) Movement Flying (11) Location To Epsilon Eridani Parts ------- > --- POWER (2) -------- Light Quantum Reactor > --- PROPULSION (8) --- Xenon Bombardment Thruster Improved Cesium-ion Thruster (fused) Improved Cesium-ion Thruster (fused) Improved Diametric Drive Cooled Q-thruster Cooled Q-thruster Cooled Q-thruster Cooled Q-thruster > --- UTILITY (10) ----- Improved Energy Well Advanced Sensor Array Long-range Sensor Array Advanced Signal Interpreter Advanced ECM Suite (fused) Graphene Brace Self-contained Transmogrifier > --- WEAPON (5) ------- Enhanced Nova Cannon > --- INVENTORY (5) ---- (None) Peak State ------------ > --- POWER ------------ Improved Quantum Reactor Improved Quantum Reactor > --- PROPULSION ------- Myomer Leg High-density Centrium Leg High-density Centrium Leg High-density Centrium Leg > --- UTILITY ---------- Experimental Cooling System Experimental Cooling System Experimental Cooling System Experimental Coolant Injector Advanced Sensor Array Advanced Signal Interpreter Experimental Weapon Cycler Self-contained Transmogrifier > --- WEAPON ----------- Heavy Gatling Laser Cooled Phase Gun Heavy Dispersion Rifle Long-range Phase Cannon Heavy Machine Gun > --- INVENTORY -------- Advanced Coolant Injector Mapping Drone Bay Gauss Cannon CPS Tube [Rating: 158] Favorites ----------- Power Subdweller Power Source Engine Subdweller Power Source Power Core Reinforced Fission Core Reactor Hybrid Antimatter Reactor Propulsion Experimental Flexi-carbon Leg Treads Medium Treads Leg Experimental Flexi-carbon Leg Wheel Wheel Hover Unit Antigrav Array Flight Unit Xenon Bombardment Thruster Utility Self-contained Transmogrifier Device Self-contained Transmogrifier Storage Large Storage Unit Processor Advanced Signal Interpreter Hackware Makeshift Hacking Suite Protection Improved Light Armor Plating Weapon Compact Ion Cannon Energy Gun Subdweller Laser Energy Cannon Compact Ion Cannon Ballistic Gun Coil Gun Ballistic Cannon Flak Cannon Launcher Tesla Bomb Launcher Special Weapon Plasma Cutter Impact Weapon Heavy Flail Piercing Weapon Force Lance Build | -11 -10 -10 -9 -6 -6 -5 -4 -4 -4 -3 -3 -2 -1 ------- Run | Yrd Mat Sub Scr Fac Ext Fac Fac Was Fac Res Tes Res Acc Slots Evolved 18 | . . . . 8 . 2 2 . . 2 . 2 2 Power 1 | . . . . 1 . . . . . . . . . Propulsion 6 | . . . . 2 . 1 . . . 1 . 1 1 Utility 8 | . . . . 3 . . 2 . . 1 . 1 1 Weapon 3 | . . . . 2 . 1 . . . . . . . Parts Attached 173 | 8 3 13 5 11 8 18 19 1 11 17 27 11 21 Power 17 | 1 . 2 2 1 . . 5 . . . 2 1 3 Engine 5 | 1 . 2 2 . . . . . . . . . . Core 3 | . . . . 1 . . 2 . . . . . . Reactor 9 | . . . . . . . 3 . . . 2 1 3 Propulsion 52 | 2 . 4 . 2 1 3 3 . 3 7 10 7 10 Treads 6 | 2 . 2 . 1 . . . . . . 1 . . Leg 20 | . . . . 1 1 3 3 . 3 5 4 . . Wheel 2 | . . 2 . . . . . . . . . . . Hover . | . . . . . . . . . . . . . . Flight 24 | . . . . . . . . . . 2 5 7 10 Utility 58 | 2 1 2 2 4 5 10 6 1 6 2 9 1 7 Device 41 | 1 . 2 1 2 3 8 3 1 6 2 7 . 5 Storage 4 | 1 1 . 1 . . . . . . . . . 1 Processor 6 | . . . . 1 . . 1 . . . 2 1 1 Hackware . | . . . . . . . . . . . . . . Protection 7 | . . . . 1 2 2 2 . . . . . . Artifact . | . . . . . . . . . . . . . . Weapon 46 | 3 2 5 1 4 2 5 5 . 2 8 6 2 1 Energy Gun 16 | 1 . 3 1 1 . 1 1 . 1 3 4 . . Energy Cannon 9 | . . 1 . . 1 3 2 . . 1 . . 1 Ballistic Gun 10 | 2 2 1 . 1 1 1 1 . . . 1 . . Ballistic Cannon 7 | . . . . . . . 1 . . 4 . 2 . Launcher 1 | . . . . 1 . . . . . . . . . Special Weapon 2 | . . . . 1 . . . . . . 1 . . Impact Weapon . | . . . . . . . . . . . . . . Slashing Weapon . | . . . . . . . . . . . . . . Piercing Weapon 1 | . . . . . . . . . 1 . . . . Special Melee Weapon . | . . . . . . . . . . . . . . Unidentified Prototypes 16 | . . 1 . . . 1 2 . . 1 9 . 2 Corrupted Parts 8 | . . . . . . . . . . 4 4 . . System Corruption 37 | . . . . . . . . . . 32 5 . . Parts Lost 52 | . . 3 . . 1 . 1 1 . 15 13 11 7 Power 7 | . . 1 . . . . . . . 1 2 1 2 Propulsion 22 | . . . . . . . . . . 7 5 7 3 Utility 12 | . . 1 . . . . . 1 . 3 2 3 2 Weapon 11 | . . 1 . . 1 . 1 . . 4 4 . . Highest Loss Streak 13 | . . 3 . . 1 . 1 1 . 13 8 11 5 To Critical Strikes 1 | . . . . . . . . . . . . 1 . Average Backups 10 | 4 7 8 9 13 14 14 14 14 14 12 4 3 4 Power . | . 1 1 1 . 1 . . 1 . . . . . Propulsion 1 | 2 4 1 2 2 1 2 2 2 1 . . . . Utility 4 | . . 1 3 7 7 7 6 5 5 5 1 1 1 Weapon 2 | . 1 3 1 1 1 2 3 5 5 6 2 1 2 Tool/Special . | . . . . . . . . . . . . . . Unused Backups 31 | . 1 10 3 3 2 6 3 . . 3 . . . Power 4 | . . 1 2 . . 1 . . . . . . . Propulsion 10 | . 1 4 1 1 . 3 . . . . . . . Utility 9 | . . . . 2 2 1 2 . . 2 . . . Weapon 8 | . . 5 . . . 1 1 . . 1 . . . Tool/Special . | . . . . . . . . . . . . . . Average Slot Usage (%) 90 | . 100 99 97 95 91 97 97 80 80 88 49 27 46 Engine 5 | . 14 14 6 5 5 5 . . . . . . . Core 3 | . . . 7 6 3 . 2 4 4 . . . . Reactor 1 | . . . . . 2 5 6 4 3 7 3 . 2 Treads 13 | . 28 21 25 23 8 . . . . . . . . Leg 8 | . . . 2 2 9 29 25 15 15 24 8 . . Wheel 1 | . . 6 . . . . . . . . . . . Flight 1 | . . . . . . . . . . . 1 11 19 Device 16 | . 14 13 14 12 20 18 15 23 25 22 23 11 16 Storage 9 | . 14 14 13 6 5 5 8 10 9 3 . . . Processor 1 | . . . . 5 2 . 4 . . . 1 3 6 Protection 1 | . . . . 5 . 1 4 . . 6 . . . Energy Gun 8 | . . 14 14 9 1 . . . 1 7 4 . . Energy Cannon 9 | . . 3 6 5 18 23 22 19 16 5 1 . . Ballistic Gun 4 | . 28 9 3 3 4 3 2 . . . . . . Peak Build Rating 158 | 7 10 24 44 76 93 111 129 120 129 149 158 61 125 Average Rating 61 | 5 7 15 32 68 82 107 121 107 111 127 93 47 73 On Entrance 53 | . 7 10 24 43 75 91 106 115 81 129 18 30 24 Avg Prop Armor Cover (%) 11 | . . 13 14 2 1 1 . . 4 18 22 11 6 Naked Turns . | . . . . . . . . . . . . . . Heaviest Build 117 | 14 22 27 40 78 76 96 113 94 105 117 75 18 39 Greatest Support 134 | 40 40 40 70 112 112 119 116 89 114 134 121 30 53 Greatest Overweight (x) 5 | . . 2 4 . . 1 1 1 1 1 5 1 4 Average Overweight (x) . | . . 1 . . . . . . . . . . . Largest Inventory Capacity 15 | 8 10 10 15 15 15 15 15 15 15 15 5 5 5 Average Capacity 12 | 7 9 10 12 15 15 15 15 15 15 14 5 5 5 Most Carried 15 | 6 10 10 15 15 15 15 15 15 15 15 5 5 5 Average Carried 11 | 4 7 9 11 14 14 14 14 14 14 13 4 3 4 Final Capacity 15 | 8 10 10 15 15 15 15 15 15 15 5 5 5 5 Final Carried 15 | 6 10 10 15 15 15 14 15 15 15 5 5 5 . Transmogrified Parts 147 | . . 2 45 12 27 8 22 4 7 2 6 5 7 Integrity Recovered 1410 | . . 55 92 109 354 54 462 32 65 . 44 39 104 Class Distribution -------------------- 42% | Mutant 18% | Tank 11% | Scavenger-Mutant 8% | Skirmisher 4% | Gunner 4% | Derelict-Tank Dominant Class ---------------- Mutant | -10/Materials Scavenger-Mutant | -10/Subcaves Mutant | -9/Scraptown Derelict-Tank | -6/Factory Gunner | -6/Extension Tank | -5/Factory Skirmisher | -4/Factory Tank | -4/Waste Skirmisher | -4/Factory Tank | -3/Research Mutant | -3/Testing Sprinter | -2/Research Mutant | -1/Access Resources | -11 -10 -10 -9 -6 -6 -5 -4 -4 -4 -3 -3 -2 -1 ----------- Run | Yrd Mat Sub Scr Fac Ext Fac Fac Was Fac Res Tes Res Acc Matter Collected 3905 | 330 34 187 260 219 266 236 562 52 231 596 510 62 360 Remotely . | . . . . . . . . . . . . . . Salvage Created 8347 | 113 132 243 . 241 976 578 1058 856 422 2965 305 116 342 Parts 347 | 6 6 11 . 26 43 29 43 13 12 123 19 8 8 Haulers Intercepted 6 | . 1 . . . . 1 1 . 1 1 . . 1 Recyclers Shooed 10 | 1 . . . . 3 1 2 . . 1 1 1 . Parts Field Recycled . | . . . . . . . . . . . . . . Retrieved Matter . | . . . . . . . . . . . . . . Parts Self-Destructed 5 | . . 5 . . . . . . . . . . . Prevented . | . . . . . . . . . . . . . . Parts Restored . | . . . . . . . . . . . . . . Kills | -11 -10 -10 -9 -6 -6 -5 -4 -4 -4 -3 -3 -2 -1 ------- Run | Yrd Mat Sub Scr Fac Ext Fac Fac Was Fac Res Tes Res Acc Combat Hostiles Destroyed 92 | . . 5 . 5 12 9 11 3 4 31 3 5 4 Guns 21 | . . 5 . 5 5 2 . . . 3 1 . . Cannons 34 | . . . . . 6 3 8 2 . 4 2 5 4 AOE 10 | . . . . . . 2 . . . 8 . . . Classes Destroyed 17 | 2 1 1 . 3 6 1 . 1 . 1 1 . . Worker 13 | . . . . 3 . . 2 . . 7 . 1 . Builder 2 | . . . . . 1 . . . . 1 . . . Tunneler 4 | 2 . . . . . 1 1 . . . . . . Hauler 6 | . 1 . . . . 1 1 . 1 1 . . 1 Recycler 7 | 1 1 . . . 1 . 1 . . 2 . . 1 Operator 4 | . . . . . 1 . 1 . 1 1 . . . Watcher 5 | . . . . . 2 . 1 . . 2 . . . Swarmer 14 | . . . . 4 1 . . . . . . 5 4 Cutter 2 | . . . . . . . . . . 2 . . . Grunt 33 | . . . . . 4 3 3 . . 23 . . . Researcher 2 | . . . . . . . . . . . 2 . . Sentry 11 | . . . . 1 5 . 2 . 2 1 . . . Hunter 10 | . . . . . . 3 2 . . 2 3 . . Programmer 13 | . . . . . 1 3 4 . 2 3 . . . Behemoth 1 | . . . . . 1 . . . . . . . . Compactor 3 | . . . . . . . . 3 . . . . . Subdweller 5 | . . 5 . . . . . . . . . . . Best Kill Streak 16 | 2 1 3 . 6 2 3 4 1 2 16 4 6 4 Combat Bots Only 12 | . . 3 . 3 2 2 2 1 2 12 1 5 4 Max Kills in Single Turn 3 | 1 1 1 . 2 2 2 2 1 1 3 1 2 1 Gunslinging . | . . . . . . . . . . . . . . Exploded 1 | . . . . . . 1 . . . 1 . . . Melee . | . . . . . . . . . . . . . . Uniques/NPCs Destroyed . | . . . . . . . . . . . . . . Combat | -11 -10 -10 -9 -6 -6 -5 -4 -4 -4 -3 -3 -2 -1 -------- Run | Yrd Mat Sub Scr Fac Ext Fac Fac Was Fac Res Tes Res Acc Hostile Shots Fired 933 | . . 29 . 28 111 37 77 2 27 193 225 123 81 Missed 330 | . . 11 . 11 39 7 25 . 10 60 69 54 44 Deflected 5 | . . . . . . . 3 . . 2 . . . Hits 603 | . . 18 . 17 72 30 52 2 17 133 156 69 37 Melee 5 | . . . . . . . . 2 . 3 . . . Projectile 598 | . . 18 . 17 72 30 52 . 17 130 156 69 37 AOE 6 | . . . . . . . . . . 2 . . 4 Critical Strikes 32 | . . . . 1 . 1 2 1 2 12 8 5 . Actively Blocked 1 | . . . . . . . . . 1 . . . . Part Disruptions 1 | . . . . . . . . . 1 . . . . Damage Taken 11286 | . . 418 . 145 764 579 850 88 357 3077 2541 1475 992 Core 2241 | . . 78 . 20 105 42 25 . 23 307 563 728 350 Absorbed by Shields 309 | . . . . 66 . 98 145 . . . . . . Redirected to Shielding 8 | . . . . . 1 . . . . 7 . . . Ignored by Resistances 227 | . . . . . 88 . . . . 139 . . . Core Remaining (%) 75 | 100 . . 68 . 85 95 . . 95 . 33 49 78 Volleys Fired 413 | 10 6 32 . 20 39 32 49 36 23 68 62 7 29 Largest 5 | 2 2 2 . 2 4 5 5 5 4 3 5 2 1 Hottest 456 | 40 40 120 . 180 350 432 456 371 314 264 355 108 120 Shots Fired 849 | 20 12 49 . 34 142 83 138 89 34 82 126 11 29 Gun 282 | 20 12 48 . 26 41 18 17 . 4 12 84 . . Cannon 519 | . . 1 . 2 101 65 121 88 30 31 40 11 29 Launcher 45 | . . . . 6 . . . . . 39 . . . Special 3 | . . . . . . . . 1 . . 2 . . Kinetic 189 | 20 12 10 . 11 31 18 20 . . 9 40 9 9 Thermal 530 | . . 39 . 4 101 51 107 89 17 16 84 2 20 Explosive 6 | . . . . 6 . . . . . . . . . Electromagnetic 122 | . . . . 13 10 14 11 . 17 57 . . . Robot Hit Streak 13 | 5 4 10 . 8 13 12 9 7 12 5 7 2 5 Robot Miss Streak 5 | 3 2 2 . 5 4 4 3 4 2 5 3 1 1 Penetration Max 1 | . . . . . 1 . 1 . . . . . . Secondary Targets 1 | . . . . . . . . . . 1 . . . Max Gunslinging Chain 1 | . . . . . . . . . . 1 . . . Capacitor 24 | . . . . . . . . . 12 12 . . . Shots Hit Robots 465 | 11 7 28 . 19 96 39 61 53 21 34 78 5 13 Core Hits 222 | 5 4 8 . 17 32 15 31 9 6 59 25 6 5 Critical Kills 6 | . . 2 . . 1 . 1 1 1 . . . . Critical Parts Destroyed 3 | . 1 . . . . . . . . . 2 . . Critical Strikes 14 | . 1 3 . . 1 . 1 1 1 2 2 2 . Burn 1 | . . . . . . . . . . 1 . . . Meltdown 4 | . . . . . 1 . 1 1 1 . . . . Destroy 6 | . 1 3 . . . . . . . . 2 . . Blast 2 | . . . . . . . . . . . . 2 . Corrupt 1 | . . . . . . . . . . 1 . . . Melee Attacks . | . . . . . . . . . . . . . . Impact . | . . . . . . . . . . . . . . Slashing . | . . . . . . . . . . . . . . Piercing . | . . . . . . . . . . . . . . Sneak Attacks . | . . . . . . . . . . . . . . Combat Hostiles . | . . . . . . . . . . . . . . Follow-up Attacks . | . . . . . . . . . . . . . . Damage Inflicted 17771 | 121 80 550 . 394 2604 1549 2316 1803 732 4781 1981 311 549 Guns 3754 | 121 80 550 . 340 600 200 162 . 93 345 1263 . . Cannons 9472 | . . . . 54 1976 923 1962 1803 639 551 704 311 549 Explosions 4412 | . . . . . . 396 173 . . 3843 . . . Melee . | . . . . . . . . . . . . . . Ramming 133 | . . . . . 28 30 19 . . 42 14 . . Kinetic 2829 | 121 80 90 . 162 448 200 190 . . 214 725 311 288 Thermal 9409 | . . 460 . 72 1976 1007 1708 1803 286 594 1242 . 261 Explosive 111 | . . . . . . . 111 . . . . . . Electromagnetic 5289 | . . . . 160 152 312 288 . 446 3931 . . . Impact . | . . . . . . . . . . . . . . Slashing . | . . . . . . . . . . . . . . Piercing . | . . . . . . . . . . . . . . Highest Corruption 47 | . . . . . 1 1 3 21 31 40 47 . 4 Average Corruption 13 | . . . . . 1 1 2 12 25 30 40 . 3 Corruption Purged 9 | . . . . . . . 1 4 . . . . 4 Corruption Blocked . | . . . . . . . . . . . . . . Effects 130 | . . . . . 5 1 10 19 30 16 46 . 3 Message Errors 26 | . . . . . 1 1 1 2 5 5 9 . 2 Matter Fused 29 | . . . . . 1 . 5 4 10 3 5 . 1 Heat Flow Errors 8 | . . . . . 1 . 1 4 . 1 1 . . Energy Discharges 15 | . . . . . 1 . 1 3 3 2 5 . . Parts Rejected 2 | . . . . . . . . 2 . . . . . Parts Fused 1 | . . . . . . . . . 1 . . . . Data Loss (minor) 8 | . . . . . 1 . 1 . 4 . 2 . . Data Loss (major) 5 | . . . . . . . . . 3 . 2 . . Misfires 2 | . . . . . . . 1 . 1 . . . . Alerts 2 | . . . . . . . . 1 . . 1 . . Misdirections 14 | . . . . . . . . 1 . 2 11 . . Weapon Failures 18 | . . . . . . . . 2 3 3 10 . . Overload Shots . | . . . . . . . . . . . . . . Overflow Damage 386 | . . . . . 23 104 61 . 21 86 . 7 84 Projectiles 217 | . . . . . 23 24 7 . 21 51 . 7 84 Explosions 167 | . . . . . . 80 54 . . 33 . . . Melee 2 | . . . . . . . . . . 2 . . . Knockbacks 8 | . . . . . . . 1 . . 3 . 3 1 Impact 1 | . . . . . . . 1 . . . . . . Kinetic 6 | . . . . . . . . . . 3 . 2 1 Secondary 1 | . . . . . . . . . . . . 1 . Self-Inflicted Damage 144 | . . . . . . 134 . . . 10 . . . Shots 3 | . . . . . . 2 . . . 1 . . . Rammed . | . . . . . . . . . . . . . . Targets Rammed 12 | . . . . . 4 3 2 . . 1 2 . . Kicked 12 | . . . . . 4 3 2 . . 1 2 . . Crushed . | . . . . . . . . . . . . . . Highest Temperature 500 | . . 24 . 174 468 406 500 381 274 291 92 16 240 Average Temperature 122 | . . 11 . 94 150 116 138 159 109 104 17 10 89 Received Heat Transfer 1099 | . . 132 . 6 204 39 65 . . 308 219 90 36 Effects 13 | . . . . . 1 1 5 4 . . . . 2 Shutdowns 1 | . . . . . . . . 1 . . . . . Energy Bleed 2 | . . . . . 1 . . 1 . . . . . Interference 8 | . . . . . . . 4 2 . . . . 2 Matter Decay 1 | . . . . . . . 1 . . . . . . Short Circuit 1 | . . . . . . 1 . . . . . . . Siege Activations . | . . . . . . . . . . . . . . Martial Activations . | . . . . . . . . . . . . . . Shielding Activations 2 | . . . . . . . 1 . . 1 . . . Total Turns 53 | . . . . . . . 21 . . 32 . . . Longest Duration 32 | . . . . . . . 21 . . 32 . . . Robots Disrupted 2 | . . . . 1 . . . . 1 . . . . Combat Hostiles 2 | . . . . 1 . . . . 1 . . . . Robots Corrupted 22 | . . . . . . 2 1 . 3 16 . . . Combat Hostiles 21 | . . . . . . 2 1 . 2 16 . . . Parts Fried 41 | . . . . . . 3 2 . 3 33 . . . Impact Corruptions 1 | . . . . . . . . . . 1 . . . Robots Melted 6 | . . . . . 1 . 2 1 2 . . . . Combat Hostiles 6 | . . . . . 1 . 2 1 2 . . . . Parts Melted 27 | . . 5 . . 6 . 6 . 7 1 1 . 1 Heat Transferred 12123 | . . 575 . 94 2785 1017 2199 2490 350 670 1721 . 222 Parts Sabotaged . | . . . . . . . . . . . . . . Parts Stolen . | . . . . . . . . . . . . . . Parts Stripped . | . . . . . . . . . . . . . . Power Chain Reactions 7 | . . . . . . 1 . . . 6 . . . Alert | -11 -10 -10 -9 -6 -6 -5 -4 -4 -4 -3 -3 -2 -1 ------- Run | Yrd Mat Sub Scr Fac Ext Fac Fac Was Fac Res Tes Res Acc Maximum Alert Level 2 | . . . . . 1 1 1 . . 2 2 1 2 Low Security (%) 78 | 100 100 . . 100 91 71 80 100 100 53 . 84 58 Level 1 16 | . . . . . 8 28 19 . . 9 96 15 10 Level 2 5 | . . . . . . . . . . 37 3 . 30 Level 3 . | . . . . . . . . . . . . . . Level 4 . | . . . . . . . . . . . . . . Level 5 . | . . . . . . . . . . . . . . High Security . | . . . . . . . . . . . . . . Max Security . | . . . . . . . . . . . . . . Peak Influence 650 | 5 11 . . 105 228 252 241 82 67 650 405 244 600 Initial 348 | . . . . . 16 93 99 80 . 22 348 161 93 Average 125 | 1 . . . 26 57 161 136 24 12 267 327 169 268 Influence Increases 4635 | 15 16 45 . 217 631 549 592 28 167 994 291 196 894 Destroy 0b10 Robot/C 1860 | . . . . 100 340 220 220 . 80 620 100 100 80 Destroy 0b10 Robot/NC 210 | 15 10 . . 15 25 10 35 . 10 70 5 5 10 Destroy Leader 322 | . 2 . . 20 44 52 34 . 32 106 10 10 12 Allied During Kill 106 | . . . . . 83 23 . . . . . . . Successful Hack 217 | . 4 . . 14 61 41 12 . 16 . . 18 51 Disable Machine 510 | . . . . 30 45 90 180 . 15 30 60 30 30 Destroy Structure 480 | . . . . 38 18 98 96 28 14 48 26 3 111 Partial Spotted 60 | . . . . . . . . . . . 15 . 45 Lose Combat Pursuer 870 | . . 45 . . 15 15 15 . . 120 75 30 555 Influence Decreases 4064 | 15 16 45 . 184 472 537 567 257 124 417 624 326 480 Entered New Map 853 | . . . . . 17 99 105 149 . 21 272 126 64 Time Decay 2534 | 15 16 45 . 184 388 398 452 108 124 246 222 90 246 Search Patrol Dispatched 100 | . . . . . . . . . . . . . 100 Lost Part 480 | . . . . . 10 . 10 . . 150 130 110 70 Lost Ally 97 | . . . . . 57 40 . . . . . . . Squads Dispatched 39 | . . . . 2 2 4 4 . 3 8 7 1 8 Investigation 6 | . . . . . . 2 1 . . 1 . . 2 Extermination 11 | . . . . 1 . 1 2 . 2 1 1 . 3 Reinforcement 18 | . . . . 1 2 1 1 . 1 5 4 1 2 Assault 2 | . . . . . . . . . . 1 1 . . Garrison 2 | . . . . . . . . . . . 1 . 1 Intercept . | . . . . . . . . . . . . . . Searches Triggered 1 | . . . . . . . . . . . . . 1 Construction Impeded 1 | . . . . . . . . . . 1 . . . Haulers Reinforced 3 | . . . . . . 1 . . . 2 . . . Active Scanning Responses . | . . . . . . . . . . . . . . Cargo Convoy Interrupts . | . . . . . . . . . . . . . . Stealth | -11 -10 -10 -9 -6 -6 -5 -4 -4 -4 -3 -3 -2 -1 --------- Run | Yrd Mat Sub Scr Fac Ext Fac Fac Was Fac Res Tes Res Acc Distress Signals 18 | . 1 . . . 2 1 3 . . 3 5 2 1 Communications Jammed 1 | . . . . . . . 1 . . . . . . Distress Signals 1 | . . . . . . . 1 . . . . . . Times Spotted 223 | . 2 14 . 8 19 13 18 6 4 46 23 23 47 Peak Tracking Total 14 | . 2 2 . 5 4 4 4 3 2 8 11 14 12 Tactical Retreats 28 | . . 3 . . 1 1 1 1 . 6 2 2 11 Traps | -11 -10 -10 -9 -6 -6 -5 -4 -4 -4 -3 -3 -2 -1 ------- Run | Yrd Mat Sub Scr Fac Ext Fac Fac Was Fac Res Tes Res Acc Traps Triggered 11 | . . . . . 1 . 3 . 2 2 1 . 2 Indirectly 2 | . . . . . . . . . . 2 . . . Trap Hack Attempts . | . . . . . . . . . . . . . . Triggered . | . . . . . . . . . . . . . . Disarmed . | . . . . . . . . . . . . . . Reprogrammed . | . . . . . . . . . . . . . . Reused . | . . . . . . . . . . . . . . Traps Extracted . | . . . . . . . . . . . . . . Installed . | . . . . . . . . . . . . . . Triggered . | . . . . . . . . . . . . . . Most Traps Carried 1 | . . 1 1 . . . . . . . . . . Machines | -11 -10 -10 -9 -6 -6 -5 -4 -4 -4 -3 -3 -2 -1 ---------- Run | Yrd Mat Sub Scr Fac Ext Fac Fac Was Fac Res Tes Res Acc Machines Disabled 36 | . . 1 . 2 3 6 12 . 1 2 5 2 2 Max in Single Turn 4 | . . 1 . 1 1 4 2 . 1 1 1 1 1 Energy Cycler 2 | . . . . . 1 . . . . . . . 1 Machines Repaired . | . . . . . . . . . . . . . . Machines Dismantled 2 | . . . . . 2 . . . . . . . . Machines Sabotaged . | . . . . . . . . . . . . . . Overloaded Fab Kills . | . . . . . . . . . . . . . . Hacking | -11 -10 -10 -9 -6 -6 -5 -4 -4 -4 -3 -3 -2 -1 --------- Run | Yrd Mat Sub Scr Fac Ext Fac Fac Was Fac Res Tes Res Acc Machines Accessed 49 | . 1 2 4 3 9 8 7 . 3 . 1 5 6 Terminals 27 | . 1 . . 1 9 3 4 . 2 . 1 3 3 Fabricators 1 | . . . . . . . . . 1 . . . . Repair Stations 4 | . . . . 2 . 1 1 . . . . . . Recycling Units 4 | . . . . . . 2 1 . . . . . 1 Scanalyzers 5 | . . . . . . 2 1 . . . . 1 1 Garrison Access 2 | . . . . . . . . . . . . 1 1 Total Hacks 116 | . 3 4 33 7 14 18 12 . 4 . 1 8 12 Successful 64 | . 1 4 33 1 6 10 3 . 2 . . 2 2 Failed 51 | . 2 . . 6 8 8 8 . 2 . 1 6 10 Catastrophic 16 | . 1 . . 2 1 3 1 . 2 . 1 1 4 Database Lockouts 1 | . . . . . . . 1 . . . . . . Manual 34 | . . 5 . 1 7 7 5 . 2 . 1 2 4 Terminals 45 | . 3 . . 2 14 5 7 . 2 . 1 6 5 Fabricators 2 | . . . . . . . . . 2 . . . . Repair Stations 9 | . . . . 5 . 3 1 . . . . . . Recycling Units 7 | . . . . . . 3 2 . . . . . 2 Scanalyzers 13 | . . . . . . 7 2 . . . . 1 3 Garrison Access 3 | . . . . . . . . . . . . 1 2 Terminal Hacks 46 | . 1 4 33 . 3 . 1 . 1 . . 2 1 Record 35 | . . 3 32 . . . . . . . . . . Prototype ID Bank 1 | . . . . . 1 . . . . . . . . Open Door 3 | . . . . . 2 . . . . . . . 1 Open DSF 1 | . . . . . . . . . . . . 1 . Level Access Points 1 | . . . . . . . . . . . . 1 . Locate Traps 2 | . 1 . . . . . . . 1 . . . . Zone Layout 1 | . . . . . . . 1 . . . . . . Proto ID Catalog 2 | . . 1 1 . . . . . . . . . . Fabricator Hacks 1 | . . . . . . . . . 1 . . . . Network Status 1 | . . . . . . . . . 1 . . . . Repair Station Hacks 1 | . . . . . . 1 . . . . . . . Scan Component 1 | . . . . . . 1 . . . . . . . Recycling Unit Hacks . | . . . . . . . . . . . . . . Scanalyzer 7 | . . . . . . 5 1 . . . . . 1 Insert Component 1 | . . . . . . . . . . . . . 1 Retrieve Study 6 | . . . . . . 5 1 . . . . . . Garrison Access Hacks . | . . . . . . . . . . . . . . Unauthorized Hacks 9 | . . . . 1 3 4 1 . . . . . . Terminals 7 | . . . . 1 3 2 1 . . . . . . Botnet 7 | . . . . 1 3 2 1 . . . . . . Fabricators . | . . . . . . . . . . . . . . Repair Stations . | . . . . . . . . . . . . . . Recycling Units 2 | . . . . . . 2 . . . . . . . Fedlink 2 | . . . . . . 2 . . . . . . . Scanalyzers . | . . . . . . . . . . . . . . Garrison Access . | . . . . . . . . . . . . . . Data Cores Recovered 2 | . . . . . . . 1 . 1 . . . . Used 2 | . . . . . . . 1 . 1 . . . . Hacking Detections 36 | . 1 . . 3 6 7 6 . 2 . 1 4 6 Full Trace Events 1 | . . . . . . . . . . . . . 1 Feedback Events . | . . . . . . . . . . . . . . Feedback Blocked . | . . . . . . . . . . . . . . Robot Schematics Acquired 2 | . . . . . . . . . . . 2 . . Robots Built . | . . . . . . . . . . . . . . Authchips . | . . . . . . . . . . . . . . Time . | . . . . . . . . . . . . . . Total Robot Build Rating . | . . . . . . . . . . . . . . Part Schematics Acquired 14 | . . . . . . . . . . . 14 . . Parts Built . | . . . . . . . . . . . . . . Authchips . | . . . . . . . . . . . . . . Time . | . . . . . . . . . . . . . . Total Part Build Rating . | . . . . . . . . . . . . . . Part Studies Acquired 6 | . . . . . . 5 1 . . . . . . Parts Repaired . | . . . . . . . . . . . . . . Time . | . . . . . . . . . . . . . . Parts Recycled . | . . . . . . . . . . . . . . Recycled Matter . | . . . . . . . . . . . . . . Retrieved Matter . | . . . . . . . . . . . . . . Retrieved Components . | . . . . . . . . . . . . . . Parts Scanalyzed . | . . . . . . . . . . . . . . Part Schematics Acquired . | . . . . . . . . . . . . . . Parts Damaged . | . . . . . . . . . . . . . . Bothacking | -11 -10 -10 -9 -6 -6 -5 -4 -4 -4 -3 -3 -2 -1 ------------ Run | Yrd Mat Sub Scr Fac Ext Fac Fac Was Fac Res Tes Res Acc Used RIF Installer . | . . . . . . . . . . . . . . Robots Hacked . | . . . . . . . . . . . . . . Non-combat . | . . . . . . . . . . . . . . Combat . | . . . . . . . . . . . . . . Robot Hacks Applied . | . . . . . . . . . . . . . . Relay Couplers Released . | . . . . . . . . . . . . . . Fabnet Peak Effective % . | . . . . . . . . . . . . . . Robots Rewired 4 | . . . . . 4 . . . . . . . . Allies Hacked . | . . . . . . . . . . . . . . Hacks Repelled . | . . . . . . . . . . . . . . Allies | -11 -10 -10 -9 -6 -6 -5 -4 -4 -4 -3 -3 -2 -1 -------- Run | Yrd Mat Sub Scr Fac Ext Fac Fac Was Fac Res Tes Res Acc Total Allies 10 | . . . . . 10 . . . . . . . . Largest Group 6 | . . . . . 6 3 . . . . . . . Highest-Rated Group 168 | . . . . . 168 87 . . . . . . . Highest-Rated Ally 39 | . . . . . 39 31 . . . . . . . Initial UFD Resources 50 | . . . . 22 22 25 43 43 43 45 45 47 50 Total Orders 5 | . . . . . . 2 . . . 1 . 2 . EXPLORE 3 | . . . . . . 1 . . . 1 . 1 . RETURN 2 | . . . . . . 1 . . . . . 1 . Ally Attacks 68 | . . . . . 49 19 . . . . . . . Total Damage 1424 | . . . . . 1021 403 . . . . . . . Kills 8 | . . . . . 5 3 . . . . . . . Allies Corrupted . | . . . . . . . . . . . . . . Allies Melted . | . . . . . . . . . . . . . . Intel | -11 -10 -10 -9 -6 -6 -5 -4 -4 -4 -3 -3 -2 -1 ------- Run | Yrd Mat Sub Scr Fac Ext Fac Fac Was Fac Res Tes Res Acc Active Infowar (turns) 5476 | 9 226 1045 2 666 385 432 901 298 531 223 172 104 482 Optics 970 | . . 58 . 666 88 . . . . . 91 67 . Sensors 2420 | . . . . 161 . 411 643 65 485 139 81 38 397 Terrain 434 | . . . . 12 385 . . . 37 . . . . Structural 105 | . . . 2 . . . . . 19 84 . . . Traps 153 | . . . . . . 21 132 . . . . . . Seismic 1637 | 9 226 987 . . . . . . . . . . 415 Jamming 999 | . . . . . . . 142 298 493 66 . . . Robot Analysis Total . | . . . . . . . . . . . . . . Derelict Logs Recovered 4 | . . . 4 . . . . . . . . . . Drone Launches 6 | . . . . . . 1 . . . 2 . 3 . Drone Recoveries 6 | . . . . . . 1 . . . 2 . 3 . Exploration | -11 -10 -10 -9 -6 -6 -5 -4 -4 -4 -3 -3 -2 -1 ------------- Run | Yrd Mat Sub Scr Fac Ext Fac Fac Was Fac Res Tes Res Acc Turns Passed 13513 | 123 226 2298 4214 750 1189 957 1126 374 551 530 464 189 522 Spaces Moved 8902 | 50 125 1575 1834 415 661 716 713 190 289 274 407 285 1368 Core 366 | 3 . . 92 . . . . . . 65 135 . 71 Treads 3196 | 47 125 688 1742 415 179 . . . . . . . . Legs 2685 | . . . . . 482 716 713 190 289 197 98 . . Wheels 887 | . . 887 . . . . . . . . . . . Hover . | . . . . . . . . . . . . . . Flight 1768 | . . . . . . . . . . 12 174 285 1297 Fastest Speed 11 | 50 160 95 50 155 90 96 102 126 126 30 32 27 11 Average Speed 115 | 153 160 132 166 157 135 102 116 126 161 108 61 32 27 Slowest Speed 300 | 160 160 240 250 160 160 177 220 209 220 200 300 106 250 Overloaded Moves . | . . . . . . . . . . . . . . Propulsion Burnouts . | . . . . . . . . . . . . . . Robots Hopped 24 | . . . . . . . . . . . 3 8 13 Potential Cave-ins . | . . . . . . . . . . . . . . Cave-ins Triggered . | . . . . . . . . . . . . . . Exploration Rate (%) 40 | 4 24 86 88 16 87 20 25 75 12 15 62 13 40 Regions Visited 13 Branch Regions 4 Pre-discovered Areas 9 | . . 2 6 . . 1 . . . . . . . Known Exits Taken 6 | . . . . 1 1 . . . 1 1 1 1 . Unknown Exits Taken 5 | 1 1 1 1 . . 1 . . . . . . . Scrap Searched 13 | . . 8 5 . . . . . . . . . . Spaces Dug 61 | . . . . 30 . 10 7 6 1 . 1 . 6 Terrain Destroyed 282 | . . . . 48 20 52 55 26 7 22 11 1 40 Melee . | . . . . . . . . . . . . . . Projectile 133 | . . . . 2 14 23 32 26 7 5 11 1 12 AOE 149 | . . . . 46 6 29 23 . . 17 . . 28 Terrain Rammed . | . . . . . . . . . . . . . . Walls Destroyed . | . . . . . . . . . . . . . . Machines Disabled . | . . . . . . . . . . . . . . Actions | -11 -10 -10 -9 -6 -6 -5 -4 -4 -4 -3 -3 -2 -1 --------- Run | Yrd Mat Sub Scr Fac Ext Fac Fac Was Fac Res Tes Res Acc Total 11474 | 74 142 1744 2991 477 827 879 912 258 356 443 540 359 1472 Wait 1652 | . . 85 1130 17 52 77 84 27 13 53 20 54 40 Move 8844 | 49 124 1574 1833 414 660 715 713 189 288 273 400 269 1343 Hop 21 | . . . . . . . . . . . 3 7 11 Pick Up 85 | 6 5 15 12 8 5 9 10 1 4 3 1 2 4 Fast Attach 120 | 7 . 6 3 5 6 9 10 2 9 12 25 10 16 Attach 61 | . . 3 1 5 2 4 3 1 6 6 9 5 16 Detach 64 | . . 2 3 2 7 7 4 1 5 7 12 4 10 Swap 64 | 2 3 6 2 3 4 9 25 1 3 5 1 . . Drop 93 | . 4 21 7 3 3 14 12 . 5 15 5 1 3 Fire 413 | 10 6 32 . 20 39 32 49 36 23 68 62 7 29 Melee . | . . . . . . . . . . . . . . Ram . | . . . . . . . . . . . . . . Kick 12 | . . . . . 4 3 2 . . 1 2 . . Crush . | . . . . . . . . . . . . . . Escape Stasis 5 | . . . . . 5 . . . . . . . . Rewire 24 | . . . . . 24 . . . . . . . . Trap . | . . . . . . . . . . . . . . Miscellaneous 16 | . . . . . 16 . . . . . . . . Route ------- -11/Scrapyard -10/Materials (discovered 2 exits: [*Min] / *Sub) -10/Subcaves (discovered 3 exits: [*Mat x2] / *Scr) -9/Scraptown (discovered 2 exits: *Fac x2) -6/Factory (discovered 8 exits: Fac x4 / Low x2 / *Ext x2) -6/Extension (discovered 2 exits: *Fac / [*Cet]) -5/Factory -4/Factory -4/Waste -4/Factory -3/Research (discovered 5 exits: Res x3 / *Tes x2) -3/Testing -2/Research (discovered 3 exits: *Acc x3) -1/Access To Epsilon Eridani History --------- Turn | Location | Event 9 | -11/Scrapyard | Discovered new exit (range 16) 124 | -11/Scrapyard | Entered Materials 125 | -10/Materials | Met a group of wandering Federalists 281 | -10/Materials | Discovered new exit (range 15) 330 | -10/Materials | Build established: Mutant 347 | -10/Materials | Discovered new exit (range 3) 350 | -10/Materials | Entered Subcaves 351 | -10/Subcaves | Shifting Twisted Machinery released Scrap Shield 351 | -10/Subcaves | Continued accompanying wandering Federalists (6) 352 | -10/Subcaves | Shifting Twisted Machinery released Barrage Gun 531 | -10/Subcaves | Discovered new exit (range 6) 595 | -10/Subcaves | Wandering Federalist uncovered a shortcut to Scraptown 936 | -10/Subcaves | Build established: Scavenger-Mutant 1400 | -10/Subcaves | Lost 3 parts (1p1u1w) 1690 | -10/Subcaves | Discovered new exit (range 7) 1760 | -10/Subcaves | Shifting Twisted Machinery released Battle Rifle 1766 | -10/Subcaves | Shifting Twisted Machinery released Battle Cannon 1812 | -10/Subcaves | Disturbed a concealed Subdweller 1928 | -10/Subcaves | Visited 4L-MR0's lab 1950 | -10/Subcaves | Found Cargo Legs 1955 | -10/Subcaves | Found Prototype Device 1955 | -10/Subcaves | Identified Sfc. Transmogrifier 2021 | -10/Subcaves | Learned location of Zion (-7) 2021 | -10/Subcaves | Met a Zionite searching for "candidates" 2071 | -10/Subcaves | Visited Clippyterm 2076 | -10/Subcaves | Learned location of Deep Caves (-7) 2301 | -10/Subcaves | Build established: Mutant 2648 | -10/Subcaves | Entered Scraptown 2748 | -9/Scraptown | Visited UFD Registry 2748 | -9/Scraptown | Registered with UFD as "Geartorch" 2771 | -9/Scraptown | Visited CR-KLE's Repair Center 2780 | -9/Scraptown | Visited IN-MT5's Study 2793 | -9/Scraptown | Visited Cyclists 2806 | -9/Scraptown | Entered Cyclist Reading Room 2843 | -9/Scraptown | Visited SPCMW 2876 | -9/Scraptown | Visited Shadow of the Wyrm 2946 | -9/Scraptown | Scanned Subdweller tech in exchange for log data 2949 | -9/Scraptown | Learned location of 1 exit from Proximity Caves 2952 | -9/Scraptown | Learned location of 2 exits from Lower Caves 3030 | -9/Scraptown | Visited Spacefarers 3103 | -9/Scraptown | Visited Fellowship of the Rings 3154 | -9/Scraptown | Heard Great Nut preacher, LISTEN AND RECITE! 3186 | -9/Scraptown | Visited Cartography Club 3218 | -9/Scraptown | Visited Supply Room 3261 | -9/Scraptown | Visited Supply Room 3288 | -9/Scraptown | Visited Science Guys 3329 | -9/Scraptown | Visited Scrap Suit Storage 3349 | -9/Scraptown | Visited Infowarlord's Domain 3369 | -9/Scraptown | Visited Chapter 10 4520 | -9/Scraptown | Visited Scrapoid Research Area 4551 | -9/Scraptown | Visited DA-N13 Charitable Foundation 4565 | -9/Scraptown | Found DCF Scrap (30 items) 4597 | -9/Scraptown | Visited Research Penetration Think Tank 4698 | -9/Scraptown | Delivered Scrap Shield to a Scientist 4922 | -9/Scraptown | Learned location of Recycling (-9) 4922 | -9/Scraptown | Learned location of Upper Caves (-4) 4922 | -9/Scraptown | Learned location of Testing (-3) 4922 | -9/Scraptown | Learned 8 Factory zone layouts 4922 | -9/Scraptown | Learned 20 Factory zone layouts 4922 | -9/Scraptown | Learned 24 Factory zone layouts 4922 | -9/Scraptown | Learned 4 Access zone layouts 4922 | -9/Scraptown | Learned 12 Lower Caves zone layouts 4922 | -9/Scraptown | Learned 12 Upper Caves zone layouts 4922 | -9/Scraptown | Learned 12 Proximity Caves zone layouts 4922 | -9/Scraptown | Learned 20 Proximity Caves zone layouts 4922 | -9/Scraptown | Learned Storage emergency access door positions 4922 | -9/Scraptown | Learned location of 1 exit from Research 4922 | -9/Scraptown | Learned location of 2 exits from Research 4973 | -9/Scraptown | Found Deep Structural Scanner 5211 | -9/Scraptown | Found Exp. Signal Interpreter 5465 | -9/Scraptown | Build established: Derelict-Mutant 5797 | -9/Scraptown | Build established: Mutant 5995 | -9/Scraptown | Discovered new exit (range 11) 6771 | -9/Scraptown | Met Optimus 6771 | -9/Scraptown | Accepted into 0bPrime 6855 | -9/Scraptown | Discovered new exit (range 5) 6862 | -9/Scraptown | Entered Factory 6862 | -6/Factory | Evolved 8 slots: Power x1, Propulsion x2, Utility x3, Weapon x2 6863 | -6/Factory | Identified exit to Lower Caves 6863 | -6/Factory | Identified exit to Extension 6864 | -6/Factory | Identified exit to Factory 7028 | -6/Factory | Spotted B-75 Beast 7612 | -6/Factory | Entered Extension 7777 | -6/Extension | Rescued a captive Derelict 7778 | -6/Extension | Rescued a captive Derelict 8001 | -6/Extension | Attached Cargo Legs, gained temporary slots: Utility x2 8003 | -6/Extension | Rescued a captive Derelict 8003 | -6/Extension | Rescued a captive Derelict 8012 | -6/Extension | P-60 Hacker assimilated allied MM-C4R(h) 8333 | -6/Extension | Spotted B-75 Beast 8360 | -6/Extension | Spotted B-75 Beast 8369 | -6/Extension | Destroyed B-75 Beast 8404 | -6/Extension | Lost 4 allies 8434 | -6/Extension | Rescued a captive Derelict 8484 | -6/Extension | Rescued a captive Derelict 8497 | -6/Extension | Energy Cycler disabled 8698 | -6/Extension | Build established: Gunner 8767 | -6/Extension | Discovered exit to Factory (range 10) 8768 | -6/Extension | Discovered new exit (range 6) 8801 | -6/Extension | Entered Factory 8801 | -5/Factory | Accompanied by 3 allies 8801 | -5/Factory | Evolved 2 slots: Propulsion x1, Weapon x1 8875 | -5/Factory | Loaded intel: 8 recycling unit locations 9096 | -5/Factory | Learned location of Protoforge (-2) 9229 | -5/Factory | Build established: Tank 9428 | -5/Factory | Discovered new exit (range 5) 9758 | -5/Factory | Entered another Factory area 9758 | -4/Factory | Evolved 2 slots: Utility x2 9759 | -4/Factory | Identified exit to Research 9896 | -4/Factory | Central database locked down 10176 | -4/Factory | Spotted B-86 Titan 10691 | -4/Factory | Build established: Skirmisher 10884 | -4/Factory | Sucked down chute 10884 | -4/Factory | Entered Waste 10899 | -4/Waste | EMP discharged 10917 | -4/Waste | Spotted C-40 Crusher 10919 | -4/Waste | Spotted C-40 Crusher 10939 | -4/Waste | Spotted C-40 Crusher 10972 | -4/Waste | Destroyed C-40 Crusher 10999 | -4/Waste | EMP discharged 10999 | -4/Waste | System corruption reached 10% 11016 | -4/Waste | Destroyed C-40 Crusher 11029 | -4/Waste | Build established: Tank 11073 | -4/Waste | Spotted C-40 Crusher 11084 | -4/Waste | Destroyed C-40 Crusher 11099 | -4/Waste | EMP discharged 11127 | -4/Waste | Spotted C-40 Crusher 11168 | -4/Waste | Spotted C-40 Crusher 11181 | -4/Waste | Crushed by Compactor (1 part destroyed, 2 dropped) 11182 | -4/Waste | Crushed by Compactor (0 parts destroyed, 2 dropped) 11199 | -4/Waste | EMP discharged 11239 | -4/Waste | Discovered new exit (range 16) 11258 | -4/Waste | Entered Factory 11558 | -4/Factory | Build established: Skirmisher 11569 | -4/Factory | System corruption reached 30% 11712 | -4/Factory | Found Quantum Capacitor 11721 | -4/Factory | Discovered exit to Research (range 18) 11809 | -4/Factory | Entered Research 11809 | -3/Research | Evolved 2 slots: Propulsion x1, Utility x1 11810 | -3/Research | Identified exit to Testing 11811 | -3/Research | Identified exit to Research 12010 | -3/Research | Build established: Tank 12175 | -3/Research | Destroyed 9 combat bots 12175 | -3/Research | System corruption reached 10% 12186 | -3/Research | System corruption reached 30% 12291 | -3/Research | Destroyed 12 combat bots 12309 | -3/Research | First assault squad dispatched 12332 | -3/Research | Lost 13 parts (1p5n3u4w) 12339 | -3/Research | Entered Testing 12350 | -3/Testing | Found Prototype Energy Gun 12350 | -3/Testing | Identified Hyp. EM Gauss Rifle 12369 | -3/Testing | Attached CPS modules to PG-JO3LIZ1VQV 12454 | -3/Testing | Found Prototype Device 12454 | -3/Testing | Identified Exp. Weapon Cycler 12485 | -3/Testing | Found Exp. Thermal Shield 12530 | -3/Testing | Scanned by Researcher 12563 | -3/Testing | Protovariant out of control (PP-6TS4PC29O0) 12564 | -3/Testing | Garrison activated, responded to threat 12612 | -3/Testing | Spotted Alpha 7 12644 | -3/Testing | Attached CPS modules to Alpha 7 12661 | -3/Testing | Core integrity fell below 50% 12697 | -3/Testing | Lost 8 parts (2p1n1u4w) 12712 | -3/Testing | Found Spectral Analyzer 12750 | -3/Testing | Spotted PP-6TS4PC29O0 12773 | -3/Testing | Spotted Striker 12785 | -3/Testing | Discovered exit to Research (range 22) 12803 | -3/Testing | Entered Research 12803 | -2/Research | Evolved 2 slots: Propulsion x1, Utility x1 12832 | -2/Research | Lost 5 parts (4n1u) 12960 | -2/Research | Identified exit to Access 12971 | -2/Research | Spotted B-90 Cyclops 12992 | -2/Research | Entered Access 12992 | -1/Access | Evolved 2 slots: Propulsion x1, Utility x1 13019 | -1/Access | Lost 11 parts (1p7n3u) 13069 | -1/Access | Garrison activated, responded to threat 13307 | -1/Access | Energy Cycler disabled 13397 | -1/Access | Spotted B-99 Colossus 13479 | -1/Access | Lost 5 parts (1p2n2u) 13492 | -1/Access | Search patrols dispatched 13506 | -1/Access | Discovered new exit (range 6) 13507 | -1/Access | Identified exit to Surface 13514 | *** | Escaped! Last Messages --------------- 13448_ T-07 Excavator destroyed. 13460_ Destroyed Com. Wheel. 13471_ Destroyed Hpw. Tractor Beam. 13473_ Destroyed Imp. Ion Engine. 13473_ Field Recycling Unit melted. 13473_ R-10 Processor destroyed. 13475_ Acquired 135 matter. 13477_ Overheating: System interference. 13477_ Enh. Nova Cannon temporarily disabled. 13492_ ALERT: Heightened foreign activity detected, multiple search patrols dispatched. 13505_ Slug penetrates Wall. 13505_ Penetrated by Slug. 13506_ The Access Shell folds into the floor. 13506_ EXIT=FOUND 13507_ EXIT=IDENTIFIED: SURFACE 13509_ Connecting with Terminal... 13514_ Penetrated by Slug. 13514_ Slug penetrates Sealed Heavy Doors. Map ----- +----------------------------------------------------+ | ?????????????????????????????????????????????????? | | ?????????????????????????????????????????????????? | | ?????????????????????????????????????????????????? | | ?????????????????????????????????????????????????? | | ########?????????????????????????????????????????? | | ############??????????????????????????????? | | ]]* # #??????????????????????????????? | | ]=* ## #??????????????????????????????? | | ]=* #? = ???????????????????????????????? | | #??? ?????????????????????????????????? | | #???##+#######################????????????? | | #???# ????????????? | | #???# ????????????? | | """ #???# ####### h""#?????????????????? | | S""" #???# #?????# h""#?????????????????? | | #???# #?????# ""#?????????????????? | | #???# #?????# T#?????????????????? | | #+########## #?????# ""#?????????????????? | | #?????# ""#?????????????????? | | #????## ""##????????????????? | | #+########### #????# #????????????????? | | # ?????????t#????## ##????????????????? | | # ??????? #?????# #?????????H???????? | | # ????? #?????# #?????????????????? | | # #???? #?????# #?????????????????? | | # #???? #?????# @" #?????????????????? | | # #???? #?????# "" #?????????????????? | | # #???? #?????# #?????????????????? | | # #?????#?????# #?????????????????? | | ? #???????????# #?????????????????? | | ? #???????????#""""""""""#?????????????????? | | ? #????????????????????????????????????????? | | ? #????????????????????????????????????????? | | ? #????????????????????????????????????????? | | ? ???????????????????????????????????????????? | | ? ??????????????????BB?????????????????????????? | | ??????????????????????BB?????????????????????????? | | ?????????????????????????????????????????????????? | | ?????????????????????????????????????????????????? | | ?????????????????????????????????????????????????? | | ?????????????????????????????????????????????????? | | ?????????????????????????????????????????????????? | | ?????????????????????????????????????????????????? | | ?????????????????????????????????????????????????? | | ?????????????????????????????????????????????????? | | ?????????????????????????????????????????????????? | | ?????????????????????????????????????????????????? | | ?????????????????????????????????????????????????? | | ?????????????????????????????????????????????????? | | ?????????????????????????????????????????????????? | +----------------------------------------------------+ Best States ------------- Heat Dissipation 160 Coolant Potential 220 Energy Generation 53 Energy Capacity 1280 Matter Stores 300 Matter Capacity 300 Sight Range 24 Robot Scan Range 19 Terrain Scan Range 16 Terrain Scan Density 210 Jamming Range 16 Armor Coverage 600 Resistance: KI 25 Resistance: TH 30 Core Shielding 30 Weapon Cycling 30 Evasion (%) 82 Recoil Reduction 4 Matter Filtering 75 Particle Charging 40 Offensive Hacking 11 Item Schematics ----------------- Exp. Energy Well | -3/Testing | Archive Adv. Gravity Neutralizer | -3/Testing | Archive Hvy. Wave Gun | -3/Testing | Archive Imp. Matter Compressor | -3/Testing | Archive Cld. Impulse Thruster | -3/Testing | Archive Kinetic Spear | -3/Testing | Archive Hvy. Neutron Cannon | -3/Testing | Archive Exp. Shield Generator | -3/Testing | Archive Mni. Fusion Reactor | -3/Testing | Archive Hvy. Dispersion Rifle | -3/Testing | Archive Exp. Sensor Array | -3/Testing | Archive Hvy. Antimatter Reactor | -3/Testing | Archive Coolant Network | -3/Testing | Archive Quantum Shading Machine | -3/Testing | Archive Robot Schematics ------------------ L-61 Swordsman | -3/Testing | Archive G-67 Veteran | -3/Testing | Archive Fabricated ------------ Nothing Repaired ---------- Nothing Studied --------- KE Penetrator | -5/Factory | Hacked Proton Cannon | -5/Factory | Hacked Lrn. Proton Cannon | -5/Factory | Hacked Gauss Cannon | -5/Factory | Hacked Plasma Cannon | -5/Factory | Hacked Adv. Plasma Cannon | -4/Factory | Hacked Alien Tech Used ----------------- None Achievements -------------- None Challenges ------------ None Game ------ Seed SapperMetafiberAutogun Manual? 0 Play Time 01:56:44 Cumulative 336.2 hours Start 2026.07.04 @ 08:39:12 End 2026.07.04 @ 10:35:54 Sessions 1 Manual Loads 0 Difficulty Rogue Special Mode None Game No. 214 Rogue 210 Adventurer 4 Explorer 0 Win Type 0 Total 99 Types 82/0/11/2/1/1/1/0/0/1 Lore% 90 Gallery% 72 Achievement% 71 Wizard Run 0 Options --------- Layout 2 ASCII 0 Keyboard 1 Movement Vi Keybinds 1 Fullscreen 2 Font 24/Smallcaps Map View 50x44 Zoom Use 0% Tactical HUD 1 Map Filters NONE Filters NONE Steam 1 RUN: e88ca6a2-1eda-4a7a-b6bb-1033609d9174